bitfinex-derivatives/quotes_SOLF0:USTF0_20250606
["timestamp","ask_amount","ask_price","bid_price","bid_amount"]
[1749184268569,0.04407983,147.12,147.1,0.05237758]
[1749184268769,0.04407983,147.12,147.1,4.90954281]
[1749184268965,36.8442,147.16,147.1,4.90954281]
[1749184269267,34.54,147.16,147.12,4.85716523]
[1749184269462,34.54,147.16,147.14,4.85716523]
[1749184269664,41.331,147.19,147.14,4.85716523]
[1749184269865,6.791,147.18,147.09,34.54]
[1749184270070,0.05031125,147.15,147.14,4.85716523]
[1749184270365,0.05031125,147.15,147.14,11.64966523]
[1749184273164,34.54,147.19,147.16,6.7917]
[1749184273668,34.54,147.19,147.16,11.64886523]
[1749184274068,34.58518803,147.19,147.17,6.7914]
[1749184274484,34.58518803,147.19,147.16,4.9048074]
[1749184274772,0.04518803,147.19,147.18,6.791]
[1749184275675,0.04518803,147.19,147.18,11.64816523]
[1749184276078,0.04518803,147.19,147.18,4.85716523]
[1749184276574,0.04518803,147.19,147.18,11.64816523]
[1749184277175,0.04518803,147.19,147.18,6.791]
[1749184280776,0.04518803,147.19,147.17,11.64856523]
[1749184281573,0.04518803,147.19,147.16,4.9048074]
[1749184282474,0.04518803,147.19,147.17,6.7915]
[1749184284879,0.04518803,147.19,147.18,6.791]
[1749184288081,0.04518803,147.19,147.17,11.64866523]
[1749184288282,0.04518803,147.19,147.17,6.7915]
[1749184288483,0.04518803,147.19,147.16,0.04764217]
[1749184288683,34.54518803,147.19,147.16,0.04764217]
[1749184289385,34.54518803,147.19,147.16,6.83944217]
[1749184289883,34.54518803,147.19,147.17,6.7915]
[1749184290583,34.54518803,147.19,147.16,6.83954217]
[1749184290876,34.54518803,147.19,147.16,0.04764217]
[1749184291883,34.54518803,147.19,147.17,6.7912]
[1749184293577,0.04518803,147.19,147.18,6.791]
[1749184293776,34.5,147.22,147.17,4.85716523]
[1749184293987,34.5,147.22,147.19,4.85716523]
[1749184294685,34.54559604,147.22,147.19,4.90958789]
[1749184295688,34.54559604,147.22,147.21,6.7896]
[1749184296085,0.04559604,147.22,147.21,6.7896]
[1749184297287,0.04559604,147.22,147.2,6.7901]
[1749184298092,0.04559604,147.22,147.19,6.84292266]
[1749184298790,0.04559604,147.22,147.2,6.7901]
[1749184298990,0.04559604,147.22,147.19,0.05242266]
[1749184299384,0.04559604,147.22,147.21,6.7896]
[1749184304495,0.04559604,147.22,147.19,0.05242266]
[1749184304694,0.04559604,147.22,147.19,4.90958789]
[1749184305700,5.01681476,147.21,147.2,6.79]
[1749184305899,0.04559604,147.22,147.19,4.90958789]
[1749184306100,5.01681481,147.21,147.19,4.90958789]
[1749184306298,5.01681481,147.2,147.19,11.69988789]
[1749184306599,5.02217168,147.2,147.19,4.90958789]
[1749184307003,5.02217541,147.2,147.19,11.69978789]
[1749184307201,5.0256904,147.2,147.19,11.69978789]
[1749184308607,0.04559604,147.22,147.2,6.79]
[1749184308807,5.02568782,147.21,147.2,6.79]
[1749184309808,0.04559604,147.22,147.2,6.79]
[1749184310002,5.02598817,147.21,147.2,6.79]
[1749184310204,4.95070823,147.21,147.2,6.79]
[1749184310907,4.95070823,147.21,147.19,11.69998789]
[1749184311105,0.04559604,147.22,147.19,11.69998789]
[1749184311106,4.95070823,147.2,147.19,11.69998789]
[1749184311302,4.93808584,147.2,147.19,11.69998789]
[1749184311698,4.93808586,147.2,147.19,11.69998789]
[1749184311902,6.83489604,147.22,147.19,11.69998789]
[1749184312203,4.93808665,147.21,147.19,11.69998789]
[1749184312406,4.93808077,147.2,147.19,11.69998789]
[1749184312810,4.93683107,147.2,147.19,11.69998789]
[1749184313709,0.04559604,147.22,147.2,6.7899]
[1749184313909,4.93682162,147.21,147.2,6.7899]
[1749184314108,0.04559604,147.22,147.2,6.7899]
[1749184314610,4.93694878,147.21,147.2,6.7899]
[1749184315006,4.93711429,147.21,147.19,11.70008789]
[1749184315206,0.04559604,147.22,147.19,11.70008789]
[1749184315411,4.93711216,147.21,147.19,4.90958789]
[1749184315614,0.04559604,147.22,147.19,4.90958789]
[1749184315808,4.93710632,147.21,147.2,6.7897]
[1749184316013,0.04559604,147.22,147.19,4.90958789]
[1749184316710,0.04559604,147.22,147.2,4.84085002]
[1749184317016,0.04559604,147.22,147.21,6.7896]
[1749184318513,10.46626095,147.22,147.19,0.05242266]
[1749184318708,5.73585926,147.21,147.19,0.05242266]
[1749184318909,5.73585926,147.2,147.19,0.05242266]
[1749184319505,12.52595926,147.2,147.19,0.05242266]
[1749184320010,17.21079345,147.2,147.19,0.05242266]
[1749184320202,12.52595926,147.2,147.19,0.05242266]
[1749184321904,6.7901,147.2,147.19,0.05242266]
[1749184322104,34.48,147.21,147.19,0.05242266]
[1749184322412,34.74843,147.27,147.2,4.84101748]
[1749184322715,10.40322503,147.26,147.22,4.84101748]
[1749184322911,41.53573,147.27,147.24,6.7882]
[1749184323111,10.40290778,147.26,147.24,6.7882]
[1749184323308,0.04810602,147.26,147.24,6.83861023]
[1749184325312,0.04810602,147.26,147.24,0.05041023]
[1749184326313,0.04810602,147.26,147.24,6.83861023]
[1749184326615,0.04810602,147.26,147.24,0.05041023]
[1749184326916,6.83550602,147.26,147.24,0.05041023]
[1749184327314,5.73168585,147.25,147.24,0.05041023]
[1749184327514,6.83550602,147.26,147.24,0.05041023]
[1749184330713,12.52320974,147.25,147.24,0.05041023]
[1749184330913,12.523301,147.25,147.24,0.05041023]
[1749184331119,17.20822933,147.25,147.24,0.05041023]
[1749184331620,12.523301,147.25,147.24,0.05041023]
[1749184331821,17.20852212,147.25,147.24,0.05041023]
[1749184332018,6.83560602,147.26,147.24,0.05041023]
[1749184333122,0.04810602,147.26,147.24,0.05041023]
[1749184333620,6.83550602,147.26,147.24,0.05041023]
[1749184335423,4.68266867,147.25,147.24,0.05041023]
[1749184335718,4.68267326,147.25,147.24,0.05041023]
[1749184335924,6.83550602,147.26,147.24,0.05041023]
[1749184336323,0.04810602,147.26,147.24,6.83861023]
[1749184336823,0.04810602,147.26,147.24,0.05041023]
[1749184338722,5.74513273,147.25,147.24,0.05041023]
[1749184338919,0.04810602,147.26,147.24,0.05041023]
[1749184339223,0.04810602,147.26,147.24,6.83861023]
[1749184340625,0.04810602,147.26,147.25,6.7878]
[1749184344828,0.04810602,147.26,147.24,0.05041023]
[1749184348035,0.04810602,147.26,147.24,6.83841023]
[1749184349632,0.04810602,147.26,147.25,6.7878]
[1749184350631,0.04810602,147.26,147.24,0.05041023]
[1749184351434,0.04810602,147.26,147.25,4.84101748]
[1749184351935,0.04810602,147.26,147.25,11.62881748]
[1749184354836,0.04810602,147.26,147.25,6.7878]
[1749184361437,2.80908833,147.26,147.24,0.05041023]
[1749184361643,0.04810602,147.26,147.24,4.89142771]
[1749184362743,0.04810602,147.26,147.25,6.7878]
[1749184364541,6.3363436,147.31,147.24,4.89142771]
[1749184364846,13.22925505,147.3,147.25,34.44]
[1749184365047,2.2008,147.33,147.29,6.7855]
[1749184365345,5.77140722,147.32,147.28,4.84101748]
[1749184365550,4.74620803,147.31,147.29,0.05055233]
[1749184365738,0.04874605,147.31,147.29,0.05055233]
[1749184366849,0.04874605,147.31,147.3,6.7851]
[1749184368643,0.04874605,147.31,147.3,11.62611748]
[1749184372145,0.04874605,147.31,147.3,6.7851]
[1749184372351,0.04874605,147.31,147.3,11.62611748]
[1749184377146,0.28726,147.34,147.33,6.7841]
[1749184377347,34.44,147.37,147.33,4.84101748]
[1749184377553,34.44,147.37,147.35,4.84101748]
[1749184377758,34.44,147.37,147.36,6.7827]
[1749184378252,425.36,147.4,147.35,4.88482118]
[1749184378557,0.049635,147.39,147.35,4.88482118]
[1749184378761,0.049635,147.39,147.37,6.7819]
[1749184380053,0.049635,147.39,147.36,6.7825]
[1749184380251,6.831035,147.39,147.36,6.7825]
[1749184382948,0.049635,147.39,147.37,6.7822]
[1749184383353,0.049635,147.39,147.35,0.0438037]
[1749184383554,0.049635,147.39,147.36,6.7826]
[1749184383859,6.831035,147.39,147.36,6.7826]
[1749184384059,0.049635,147.39,147.36,6.7826]
[1749184384654,0.049635,147.39,147.37,6.7822]
[1749184386158,0.049635,147.39,147.35,0.0438037]
[1749184386956,0.049635,147.39,147.36,6.7826]
[1749184387855,0.049635,147.39,147.35,0.0438037]
[1749184388754,0.049635,147.39,147.35,4.88482118]
[1749184389664,0.049635,147.39,147.35,0.0438037]
[1749184390674,6.831235,147.39,147.36,6.7826]
[1749184390858,6.831235,147.39,147.35,0.0438037]
[1749184391959,0.049635,147.39,147.38,6.7818]
[1749184392163,36.6223,147.44,147.37,4.84101748]
[1749184392357,36.6223,147.44,147.41,4.84101748]
[1749184392665,36.6223,147.44,147.43,6.7795]
[1749184392960,36.6223,147.44,147.41,4.84101748]
[1749184393167,36.67148263,147.44,147.41,4.89296556]
[1749184393366,34.50918263,147.44,147.41,4.89296556]
[1749184393568,39.30101748,147.5,147.43,4.84101748]
[1749184393864,6.7782,147.46,147.43,11.62041748]
[1749184394052,41.2382,147.46,147.43,6.7794]
[1749184394255,34.46,147.46,147.43,6.7794]
[1749184394656,34.50661339,147.46,147.43,6.82317538]
[1749184394864,34.50661339,147.46,147.43,0.04377538]
[1749184395060,43.75763087,147.46,147.43,0.04377538]
[1749184395468,6.7789,147.45,147.43,0.04377538]
[1749184396463,6.7789,147.45,147.41,6.7804]
[1749184396464,43.75763087,147.46,147.36,38.7975]
[1749184396661,43.71101748,147.46,147.38,4.84101748]
[1749184396857,43.71101748,147.46,147.4,6.7808]
[1749184396858,6.7797,147.43,147.4,6.7808]
[1749184397367,4.84101748,147.44,147.4,6.7808]
[1749184397568,0.04580735,147.43,147.41,0.04446731]
[1749184398265,6.82540735,147.43,147.41,0.04446731]
[1749184398462,34.46,147.42,147.41,0.04446731]
[1749184399664,34.46,147.42,147.33,34.46]
[1749184399863,34.46,147.42,147.36,4.84101748]
[1749184400366,4.84101748,147.4,147.33,34.46]
[1749184400567,4.84101748,147.4,147.32,6.99941748]
[1749184400766,0.04516433,147.37,147.35,0.05197518]
[1749184403175,0.04516433,147.37,147.35,6.83507518]
[1749184403873,0.04516433,147.37,147.35,0.05197518]
[1749184404774,0.04516433,147.37,147.35,6.83517518]
[1749184404978,0.04516433,147.37,147.35,0.05197518]
[1749184405474,0.04516433,147.37,147.36,6.7827]
[1749184406075,0.04516433,147.37,147.35,0.05197518]
[1749184406076,0.04516433,147.37,147.35,6.83507518]
[1749184408473,6.82746433,147.37,147.35,0.05197518]
[1749184409877,0.04516433,147.37,147.35,0.05197518]
[1749184411379,4.77879177,147.37,147.35,0.05197518]
[1749184411572,10.54385304,147.37,147.35,0.05197518]
[1749184412171,4.77879177,147.37,147.35,0.05197518]
[1749184412672,6.7827,147.36,147.35,0.05197518]
[1749184413072,11.62371748,147.36,147.35,0.05197518]
[1749184413473,22.12740638,147.36,147.35,0.05197518]
[1749184413777,17.39561189,147.36,147.35,0.05197518]
[1749184413980,22.12736965,147.36,147.35,0.05197518]
[1749184414479,22.12474332,147.36,147.35,0.05197518]
[1749184414879,6.7843,147.33,147.27,36.5784]
[1749184415081,11.62531748,147.33,147.27,36.5784]
[1749184415379,4.84101748,147.33,147.3,6.7855]
[1749184415974,4.89250066,147.33,147.3,0.04812175]
[1749184416479,4.84101748,147.31,147.3,0.04812175]
[1749184416980,11.62601748,147.31,147.3,0.04812175]
[1749184417170,4.76035174,147.33,147.3,0.04812175]
[1749184417369,4.84101748,147.32,147.3,0.04812175]
[1749184418070,11.62591748,147.32,147.3,0.04812175]
[1749184419381,4.84101748,147.32,147.3,0.04812175]
[1749184419881,11.62591748,147.32,147.3,0.04812175]
[1749184421279,0.05148318,147.33,147.3,0.04812175]
[1749184421483,4.89250066,147.33,147.3,0.04812175]
[1749184422880,4.89250066,147.33,147.3,6.83332175]
[1749184423078,0.05148318,147.33,147.3,0.04812175]
[1749184423280,34.47148318,147.33,147.31,6.785]
[1749184423579,34.47148318,147.33,147.3,0.04812175]
[1749184423883,34.47148318,147.33,147.32,6.7846]
[1749184424884,0.05148318,147.33,147.32,6.7846]
[1749184428381,0.05148318,147.33,147.31,6.7849]
[1749184428582,0.05148318,147.33,147.3,0.04812175]
[1749184431082,0.05148318,147.33,147.31,6.7849]
[1749184431688,0.05148318,147.33,147.32,6.7846]
[1749184431886,0.05148318,147.33,147.3,4.88913923]
[1749184432287,0.05148318,147.33,147.31,6.7847]
[1749184432491,0.05148318,147.33,147.3,4.88913923]
[1749184433086,0.05148318,147.33,147.31,6.785]
[1749184433481,0.05148318,147.33,147.32,6.7846]
[1749184436389,0.05148318,147.33,147.3,4.88913923]
[1749184437390,0.05148318,147.33,147.32,6.7846]
[1749184440995,0.05148318,147.33,147.3,0.04812175]
[1749184441696,0.05148318,147.33,147.3,6.83332175]
[1749184441896,0.05148318,147.33,147.3,0.04812175]
[1749184442200,0.05148318,147.33,147.31,6.7847]
[1749184444098,0.05148318,147.33,147.3,0.04812175]
[1749184444099,6.83558318,147.33,147.3,6.83342175]
[1749184445199,0.05148318,147.33,147.31,6.785]
[1749184446095,0.05148318,147.33,147.3,6.83342175]
[1749184446299,6.83558318,147.33,147.3,6.83342175]
[1749184446794,6.83558318,147.33,147.3,0.04812175]
[1749184446795,6.7846,147.32,147.3,0.04812175]
[1749184447200,34.6,147.32,147.3,0.04812175]
[1749184447401,17.43030055,147.31,147.3,0.04812175]
[1749184448602,6.7855,147.3,147.27,6.7867]
[1749184448805,4.84101748,147.31,147.27,6.7867]
[1749184449397,6.28522726,147.34,147.3,4.83482791]
[1749184449700,0.04747388,147.33,147.31,0.0515203]
[1749184449897,0.04339735,147.33,147.31,0.05186006]
[1749184450098,0.04339735,147.33,147.31,4.88492761]
[1749184450602,0.04339735,147.33,147.32,6.7846]
[1749184452103,0.04339735,147.33,147.31,4.88492761]
[1749184452301,0.04339735,147.33,147.31,0.05186006]
[1749184452706,0.04339735,147.33,147.32,6.7846]
[1749184456703,0.04339735,147.33,147.32,11.61766755]
[1749184459416,34.6,147.38,147.37,6.7822]
[1749184472215,34.6,147.38,147.36,11.66335628]
[1749184473216,34.6,147.38,147.37,6.7823]
[1749184476619,0.04599753,147.39,147.38,6.7818]
[1749184476821,0.04599753,147.39,147.38,11.61486755]
[1749184478022,34.64,147.43,147.38,4.83306755]
[1749184478227,34.64,147.43,147.35,4.83306755]
[1749184478228,34.64,147.43,147.42,4.83306755]
[1749184479827,34.64,147.43,147.42,11.61306755]
[1749184480328,0.04815241,147.44,147.43,6.7795]
[1749184482126,6.33568846,147.53,147.49,6.7767]
[1749184482318,6.33568846,147.53,147.48,4.83306755]
[1749184482319,10.50822784,147.52,147.48,4.83306755]
[1749184482525,10.50822784,147.53,147.48,4.83306755]
[1749184482725,5.80256998,147.53,147.48,4.83306755]
[1749184483225,0.05042465,147.52,147.5,4.83306755]
[1749184483425,0.05042465,147.52,147.51,6.7757]
[1749184483931,0.05042465,147.52,147.5,6.7762]
[1749184486428,0.05042465,147.52,147.51,11.60886755]
[1749184488036,0.05042465,147.52,147.51,6.7758]
[1749184489131,0.05042465,147.52,147.5,4.83306755]
[1749184489132,0.05042465,147.52,147.49,0.04802425]
[1749184490240,0.05042465,147.52,147.5,6.776]
[1749184491437,0.05042465,147.52,147.51,6.7758]
[1749184495044,0.05042465,147.52,147.51,11.60886755]
[1749184495448,11.16875601,147.63,147.51,39.43306755]
[1749184495648,11.39767009,147.62,147.56,4.83306755]
[1749184495852,4.83306755,147.61,147.54,4.83306755]
[1749184496044,6.772,147.6,147.56,6.7733]
[1749184496349,0.05086703,147.59,147.57,0.04441087]
[1749184498950,6.82306703,147.59,147.57,0.04441087]
[1749184503044,6.7726,147.58,147.57,0.04441087]
[1749184505550,4.88393458,147.59,147.57,0.04441087]
[1749184505551,11.65623458,147.59,147.57,0.04441087]
[1749184506649,4.88393458,147.59,147.57,0.04441087]
[1749184507750,11.65613458,147.59,147.57,0.04441087]
[1749184509454,4.88393458,147.59,147.57,0.04441087]
[1749184509750,0.05086703,147.59,147.57,0.04441087]
[1749184510554,0.05086703,147.59,147.58,6.7726]
[1749184513155,0.05086703,147.59,147.57,0.04441087]
[1749184513156,0.05086703,147.59,147.57,6.81731087]
[1749184513355,0.05086703,147.59,147.57,0.04441087]
[1749184513557,0.05086703,147.59,147.58,6.7726]
[1749184514454,0.05086703,147.59,147.57,0.04441087]
[1749184514654,34.43086703,147.59,147.57,0.04441087]
[1749184514956,6.7726,147.58,147.57,0.04441087]
[1749184515148,39.26393458,147.59,147.57,0.04441087]
[1749184515956,39.26393458,147.59,147.52,4.83306755]
[1749184516655,6.7729,147.58,147.54,6.7741]
[1749184517056,6.7729,147.58,147.55,0.04622837]
[1749184517455,6.7732,147.57,147.55,0.04622837]
[1749184517857,4.83306755,147.57,147.55,0.04622837]
[1749184518159,6.7735,147.56,147.55,0.04622837]
[1749184518853,0.05086703,147.59,147.55,0.04622837]
[1749184519051,0.05086703,147.59,147.55,4.86320854]
[1749184520057,0.05086703,147.59,147.57,6.7728]
[1749184520557,0.05086703,147.59,147.55,4.86320854]
[1749184521158,0.05086703,147.59,147.57,6.7727]
[1749184523558,0.05086703,147.59,147.58,6.7726]
[1749184524555,5.85172027,147.59,147.58,6.7726]
[1749184524750,0.05086703,147.59,147.58,6.7726]
[1749184525158,5.85492969,147.59,147.58,6.7726]
[1749184525354,0.05086703,147.59,147.58,6.7726]
[1749184526165,13.55376035,147.59,147.56,6.7732]
[1749184526353,2.84520267,147.58,147.56,6.7732]
[1749184526559,4.83895527,147.57,147.56,6.7732]
[1749184527556,4.85071216,147.57,147.56,6.7732]
[1749184527752,4.85071216,147.57,147.55,0.04622837]
[1749184528060,4.85072232,147.56,147.55,0.04622837]
[1749184528564,34.43086703,147.59,147.55,0.04622837]
[1749184528861,10.67619734,147.58,147.55,0.04622837]
[1749184529068,4.8507224,147.57,147.55,0.04622837]
[1749184529267,4.8507224,147.56,147.55,0.04622837]
[1749184529458,6.7727,147.58,147.55,0.04622837]
[1749184529663,4.85222908,147.57,147.55,0.04622837]
[1749184529863,4.85223198,147.56,147.55,6.82022837]
[1749184530366,4.85223338,147.56,147.55,6.82022837]
[1749184530568,4.8522342,147.56,147.55,6.82022837]
[1749184531463,4.85223128,147.56,147.55,6.82022837]
[1749184531766,4.85223508,147.56,147.55,6.82022837]
[1749184531957,4.85223832,147.56,147.55,6.82022837]
[1749184532156,4.85223444,147.56,147.55,6.82022837]
[1749184532661,7.69787419,147.56,147.55,0.04622837]
[1749184532861,2.84544872,147.56,147.55,0.04622837]
[1749184533060,7.68640829,147.56,147.55,0.04622837]
[1749184533266,2.84565033,147.56,147.55,6.82022837]
[1749184533566,4.84096275,147.56,147.55,6.82022837]
[1749184533864,4.8409468,147.56,147.55,6.82022837]
[1749184534065,34.43086703,147.59,147.56,6.7735]
[1749184534267,13.51541151,147.58,147.55,0.04622837]
[1749184534469,7.68627662,147.57,147.56,11.59082733]
[1749184534665,34.43086703,147.59,147.56,4.81732733]
[1749184534865,2.84503235,147.58,147.56,4.81732733]
[1749184535066,7.6856504,147.57,147.56,11.59082733]
[1749184535273,7.68565307,147.57,147.56,11.59082733]
[1749184535569,7.68565307,147.57,147.56,6.7735]
[1749184535769,4.84055633,147.57,147.56,6.7735]
[1749184536173,0.05086703,147.59,147.55,4.8635557]
[1749184536369,0.05086703,147.59,147.58,4.81732733]
[1749184536566,2.88973352,147.59,147.58,4.81732733]
[1749184536764,0.05086703,147.59,147.58,11.58992733]
[1749184537066,0.05086703,147.59,147.58,6.7726]
[1749184537267,0.05086703,147.59,147.58,11.58992733]
[1749184539467,6.703e-05,147.59,147.58,11.58992733]
[1749184539666,43.45797237,147.64,147.63,6.7701]
[1749184540074,40.62083605,147.64,147.59,4.81732733]
[1749184540374,5.84083605,147.63,147.59,4.81732733]
[1749184540569,0.04287322,147.62,147.61,4.81732733]
[1749184540768,0.04287322,147.62,147.61,11.58852733]
[1749184541171,0.04287322,147.62,147.61,6.7712]
[1749184541871,0.04287322,147.62,147.6,0.0448016]
[1749184542677,0.04287322,147.62,147.6,6.8163016]
[1749184544580,0.04287322,147.62,147.61,6.7712]
[1749184557587,10.67213952,147.62,147.6,6.8164016]
[1749184557789,0.04287322,147.62,147.6,6.8164016]
[1749184558188,0.04287322,147.62,147.6,0.0448016]
[1749184558481,4.79865065,147.61,147.6,0.0448016]
[1749184558787,4.79866095,147.61,147.6,0.0448016]
[1749184559192,0.04287322,147.62,147.6,0.0448016]
[1749184559485,4.79866241,147.61,147.6,0.0448016]
[1749184559685,4.79866396,147.61,147.6,0.0448016]
[1749184560174,4.79866396,147.61,147.6,6.8165016]
[1749184560678,4.79816204,147.61,147.6,6.8165016]
[1749184561175,4.798162,147.61,147.6,6.8165016]
[1749184561585,7.64920905,147.61,147.6,6.8165016]
[1749184562086,13.48734054,147.61,147.6,6.8165016]
[1749184562284,7.64920905,147.61,147.6,6.8165016]
[1749184562477,13.48473248,147.61,147.6,6.8165016]
[1749184562685,0.04287322,147.62,147.61,6.7712]
[1749184568181,6.33568846,147.67,147.64,6.7696]
[1749184568392,6.7682,147.68,147.64,6.7696]
[1749184568393,48.02705906,147.66,147.64,6.7696]
[1749184568580,13.48705906,147.65,147.64,6.7696]
[1749184569189,10.63269354,147.65,147.64,6.7696]
[1749184569388,13.48688029,147.65,147.64,6.7696]
[1749184569589,5.84010551,147.65,147.64,6.7696]
[1749184569992,10.63870337,147.65,147.64,6.7696]
[1749184570293,13.49356559,147.65,147.64,6.7696]
[1749184571089,10.6391349,147.65,147.64,6.7696]
[1749184571290,13.49357292,147.65,147.64,6.7696]
[1749184571493,5.84010551,147.65,147.64,6.7696]
[1749184571686,10.63912561,147.65,147.64,6.7696]
[1749184571883,5.84010551,147.65,147.64,6.7696]
[1749184572083,8.69722819,147.65,147.63,0.05216488]
[1749184572285,5.84076664,147.64,147.63,0.05216488]
[1749184572496,2.85712268,147.65,147.63,0.05216488]
[1749184572690,2.85712268,147.65,147.63,6.82246488]
[1749184572988,2.85712268,147.65,147.63,0.05216488]
[1749184573184,2.85871522,147.64,147.63,0.05216488]
[1749184573385,5.84457867,147.64,147.63,0.05216488]
[1749184573587,13.49763396,147.64,147.63,0.05216488]
[1749184574189,13.4982625,147.64,147.63,0.05216488]
[1749184574390,10.63905498,147.64,147.63,0.05216488]
[1749184574586,8.70378836,147.64,147.63,0.05216488]
[1749184574892,13.49807241,147.64,147.57,4.81732733]
[1749184575088,13.49807241,147.63,147.57,4.81732733]
[1749184575290,48.03807241,147.62,147.59,6.7718]
[1749184575484,6.33568846,147.65,147.59,4.81732733]
[1749184575685,6.81717482,147.63,147.61,0.05169173]
[1749184575890,6.81717482,147.63,147.61,0.04708749]
[1749184575891,43.22808984,147.62,147.61,0.04708749]
[1749184576091,48.02422752,147.62,147.61,0.04708749]
[1749184576389,51.93556921,147.62,147.61,0.04708749]
[1749184576589,54.79505447,147.62,147.61,0.04708749]
[1749184577293,48.01411936,147.62,147.61,0.04708749]
[1749184577698,48.02254052,147.62,147.61,0.04708749]
[1749184578089,48.02254387,147.62,147.61,0.04708749]
[1749184578287,48.02252242,147.62,147.61,0.04708749]
[1749184578688,48.02251079,147.62,147.61,0.04708749]
[1749184578884,48.02251079,147.62,147.61,6.81828749]
[1749184579085,48.02219646,147.62,147.61,6.81828749]
[1749184579292,48.01564911,147.62,147.61,6.81828749]
[1749184579593,34.52,147.62,147.61,6.81828749]
[1749184580293,0.05098133,147.63,147.62,6.7708]
[1749184580490,5.91050679,147.63,147.62,6.7708]
[1749184580794,0.05098133,147.63,147.62,6.7708]
[1749184581293,0.05098133,147.63,147.62,11.58812733]
[1749184585597,0.05098133,147.63,147.62,6.7708]
[1749184591899,29.98535792,147.63,147.46,13.5563]
[1749184592098,15.03492516,147.62,147.5,4.82062642]
[1749184592300,48.03387242,147.61,147.57,6.7727]
[1749184592503,13.51386289,147.6,147.57,6.7727]
[1749184592704,34.52,147.61,147.57,6.7727]
[1749184592904,34.52,147.61,147.58,0.05214564]
[1749184592905,13.56228275,147.6,147.58,0.05214564]
[1749184593106,0.04948264,147.6,147.58,0.05214564]
[1749184596107,0.04948264,147.6,147.58,6.82464564]
[1749184596707,0.04948264,147.6,147.58,0.05214564]
[1749184597407,0.04948264,147.6,147.58,6.82474564]
[1749184597805,0.04948264,147.6,147.58,0.05214564]
[1749184598106,6.82148264,147.6,147.58,0.05214564]
[1749184598608,0.04948264,147.6,147.58,0.05214564]
[1749184599800,6.82138264,147.6,147.58,0.05214564]
[1749184600007,0.04948264,147.6,147.58,0.05214564]
[1749184600507,6.82158264,147.6,147.58,0.05214564]
[1749184600710,4.81226586,147.59,147.58,0.05214564]
[1749184600908,0.04948264,147.6,147.58,0.05214564]
[1749184601114,4.81227416,147.59,147.58,0.05214564]
[1749184601508,6.7722,147.59,147.58,0.05214564]
[1749184602403,6.7732,147.57,147.53,4.81623345]
[1749184602606,41.2332,147.57,147.53,4.81623345]
[1749184602800,34.46,147.57,147.51,4.81623345]
[1749184603004,6.7736,147.56,147.51,4.81623345]
[1749184603206,34.46,147.57,147.51,4.81623345]
[1749184603411,0.05077661,147.55,147.53,6.82637203]
[1749184603611,0.05077661,147.55,147.53,0.05147203]
[1749184604110,0.05077661,147.55,147.54,6.7745]
[1749184604905,0.05077661,147.55,147.53,6.82627203]
[1749184607715,0.05077661,147.55,147.54,6.7745]
[1749184608417,0.05077661,147.55,147.53,0.05147203]
[1749184609015,0.05077661,147.55,147.53,6.82627203]
[1749184610210,0.05077661,147.55,147.54,6.7745]
[1749184610418,0.05077661,147.55,147.53,0.05147203]
[1749184610816,0.05077661,147.55,147.54,6.7745]
[1749184615026,34.46,147.6,147.59,6.7722]
[1749184615226,34.46,147.6,147.57,4.81623345]
[1749184615720,34.46,147.6,147.58,6.7723]
[1749184616128,34.50552808,147.6,147.58,6.81773253]
[1749184617726,34.50552808,147.6,147.59,6.7722]
[1749184617928,34.50552808,147.6,147.58,0.04543253]
[1749184620735,6.7722,147.59,147.58,0.04543253]
[1749184621028,34.50552808,147.6,147.58,0.04543253]
[1749184621534,41.27722808,147.6,147.58,0.04543253]
[1749184625939,34.50552808,147.6,147.58,0.04543253]
[1749184626829,41.27732808,147.6,147.58,0.04543253]
[1749184627230,34.50552808,147.6,147.59,6.7722]
[1749184628537,34.50552808,147.6,147.58,0.04543253]
[1749184629735,34.50552808,147.6,147.59,6.7722]
[1749184630239,34.50552808,147.6,147.58,0.04543253]
[1749184630429,0.04552808,147.6,147.58,0.04543253]
[1749184630633,34.44552808,147.6,147.58,0.04543253]
[1749184631831,34.44552808,147.6,147.58,6.81803253]
[1749184633239,34.44552808,147.6,147.58,0.04543253]
[1749184634743,34.4,147.59,147.58,0.04543253]
[1749184634945,40.25168942,147.59,147.58,0.04543253]
[1749184635149,40.25168942,147.59,147.54,4.81623345]
[1749184635350,34.4,147.59,147.54,4.81623345]
[1749184635846,12.6272804,147.58,147.54,6.7742]
[1749184636047,5.8544804,147.57,147.54,6.7742]
[1749184636243,0.0469728,147.57,147.54,6.8215467]
[1749184636643,5.85734157,147.56,147.54,6.8215467]
[1749184636846,0.0469728,147.57,147.54,6.8215467]
[1749184637039,5.85724658,147.56,147.54,6.8215467]
[1749184637245,0.0469728,147.57,147.54,6.8215467]